bitfinex/quotes_SOLUSD_20251013
["timestamp","ask_amount","ask_price","bid_price","bid_amount"]
[1760351549978,0.1090333,195.93,195.92,25.10412412]
[1760351550168,0.1090333,195.93,195.92,25.77412412]
[1760351550367,0.1090333,195.93,195.92,25.10412412]
[1760351551984,15.60667085,195.93,195.87,19.99999999]
[1760351552188,9.71367412,195.89,195.88,19.99999999]
[1760351552875,10.39367412,195.89,195.88,19.99999999]
[1760351553192,10.39367412,195.89,195.84,25.10618388]
[1760351553369,9.71367412,195.87,195.86,19.99999999]
[1760351554288,9.71367412,195.87,195.86,25.10568772]
[1760351554595,9.71367412,195.87,195.84,19.99999999]
[1760351554893,9.71367412,195.87,195.84,20.66999999]
[1760351555191,9.71367412,195.87,195.86,19.99999999]
[1760351555690,9.82046078,195.87,195.86,19.99999999]
[1760351556583,0.10678666,195.87,195.86,25.10568772]
[1760351556786,0.10678666,195.87,195.86,46.36583705]
[1760351559598,0.10678666,195.87,195.86,43.16145724]
[1760351560000,0.10678666,195.87,195.86,36.65216293]
[1760351561780,0.10678666,195.87,195.86,43.16145724]
[1760351562496,1e-08,195.87,195.86,63.96145724]
[1760351563311,1e-08,195.87,195.86,57.45216293]
[1760351563513,1e-08,195.87,195.86,63.96145724]
[1760351563803,1e-08,195.87,195.86,57.45216293]
[1760351564794,1e-08,195.87,195.86,63.96145724]
[1760351565902,1e-08,195.87,195.86,36.65216293]
[1760351566109,0.69000001,195.87,195.86,19.99999999]
[1760351566281,7.19929432,195.87,195.86,19.99999999]
[1760351566782,0.69000001,195.87,195.86,25.10568772]
[1760351566980,1e-08,195.87,195.86,25.10568772]
[1760351567179,1e-08,195.87,195.86,43.20145724]
[1760351569111,1e-08,195.87,195.86,36.69216293]
[1760351569302,1e-08,195.87,195.86,35.98216293]
[1760351570907,7.19929432,195.87,195.86,19.99999999]
[1760351571410,1e-08,195.87,195.86,25.10568772]
[1760351571785,1e-08,195.87,195.86,36.69216293]
[1760351571985,1e-08,195.87,195.86,35.98216293]
[1760351574520,1e-08,195.87,195.86,43.20145724]
[1760351574684,1e-08,195.87,195.86,64.00145724]
[1760351575294,1e-08,195.87,195.86,278.50145724]
[1760351575898,1e-08,195.87,195.86,271.99216293]
[1760351577421,0.21199823,195.88,195.87,10.87647521]
[1760351577422,1e-08,195.88,195.87,10.87647521]
[1760351577606,1e-08,195.88,195.87,11.58647521]
[1760351577988,1e-08,195.88,195.87,31.5864752]
[1760351578191,1e-08,195.88,195.87,38.09576951]
[1760351578391,1e-08,195.88,195.87,43.20119657]
[1760351579133,0.09403831,195.95,195.92,19.99999999]
[1760351579417,1e-08,195.95,195.94,30.8764752]
[1760351579600,1e-08,195.95,195.94,37.38576951]
[1760351579788,1e-08,195.95,195.94,38.09576951]
[1760351580401,1e-08,195.95,195.94,43.19937265]
[1760351581113,1e-08,195.95,195.94,42.48937265]
[1760351581506,1e-08,195.95,195.94,43.19937265]
[1760351582009,1e-08,195.95,195.94,35.98007834]
[1760351582512,1e-08,195.95,195.94,43.19937265]
[1760351583526,1e-08,195.95,195.94,35.98007834]
[1760351583817,1e-08,195.95,195.94,42.48937265]
[1760351584623,0.69,196.02,196.0,19.99999999]
[1760351584914,0.69,196.02,196.01,19.99999999]
[1760351585121,6.50929431,196.04,196.0,100.29033224]
[1760351585296,0.69,196.01,196.0,100.29033224]
[1760351585617,0.69,196.01,196.0,105.39237305]
[1760351585813,7.19929431,196.01,196.0,100.29033224]
[1760351586207,7.19929431,196.01,196.0,80.29033225]
[1760351586408,7.19929431,196.01,195.96,19.99999999]
[1760351586603,6.50929431,195.98,195.96,100.29033224]
[1760351586803,0.69,195.97,195.96,80.29033225]
[1760351586999,7.19929431,195.97,195.96,80.29033225]
[1760351587719,12.30217788,195.97,195.91,10.87647521]
[1760351587896,6.50929431,195.94,195.91,91.27647521]
[1760351588219,6.50929431,195.92,195.91,80.4]
[1760351588420,7.19929431,195.92,195.91,80.4]
[1760351589505,7.19929431,195.92,195.87,80.4]
[1760351589717,6.50929431,195.89,195.87,80.4]
[1760351589921,0.69,195.88,195.87,80.4]
[1760351590516,7.19929431,195.88,195.87,80.4]
[1760351591615,7.19929431,195.88,195.87,100.39999999]
[1760351592123,7.19929431,195.88,195.87,80.4]
[1760351592528,0.69,195.93,195.87,106.21542705]
[1760351592717,6.50929431,195.92,195.9,19.99999999]
[1760351592921,7.19929431,195.92,195.9,19.99999999]
[1760351593231,5.10335565,195.95,195.93,19.99999999]
[1760351593232,6.50929431,195.95,195.93,19.99999999]
[1760351593423,0.69,195.95,195.93,19.99999999]
[1760351593622,2.66705946,195.99,195.95,19.99999999]
[1760351593926,6.50929431,196.01,195.99,19.99999999]
[1760351594233,0.69,196.0,195.99,19.99999999]
[1760351594413,7.19929431,196.0,195.99,19.99999999]
[1760351594618,7.19929431,196.0,195.93,10.87647521]
[1760351594815,6.50929431,195.95,195.91,19.99999999]
[1760351595131,7.19929431,195.95,195.93,19.99999999]
[1760351595709,0.10008549,195.94,195.93,30.8764752]
[1760351597238,0.10008549,195.94,195.93,35.98033882]
[1760351599033,0.10008549,195.94,195.93,116.38033882]
[1760351599623,0.10008549,195.94,195.93,19.99999999]
[1760351599817,7.2893798,195.94,195.92,19.99999999]
[1760351600012,0.68,195.93,195.89,80.4]
[1760351600219,0.68,195.92,195.89,105.50489828]
[1760351600514,0.68,195.91,195.9,19.99999999]
[1760351600916,0.68,195.91,195.89,100.39999999]
[1760351601326,0.68,195.91,195.89,80.4]
[1760351601531,0.68,195.91,195.89,100.39999999]
[1760351602039,0.68,195.91,195.89,80.4]
[1760351602336,0.68,195.91,195.89,100.39999999]
[1760351602843,0.68,195.91,195.89,80.4]
[1760351603223,5.10388249,195.93,195.89,80.4]
[1760351603420,0.10008549,195.94,195.89,105.50484043]
[1760351603633,6.50929431,195.93,195.9,20.64999999]
[1760351603834,0.10008549,195.94,195.91,10.87647521]
[1760351604034,0.10008549,195.94,195.93,19.99999999]
[1760351604934,6.6093798,195.94,195.93,19.99999999]
[1760351605932,7.2893798,195.94,195.91,80.4]
[1760351606136,6.50929431,195.93,195.91,80.4]
[1760351606344,6.50929431,195.92,195.91,80.4]
[1760351606536,7.18929431,195.92,195.91,80.4]
[1760351607030,7.18929431,195.92,195.85,105.50572833]
[1760351607031,5.10438466,195.91,195.85,105.50572833]
[1760351607349,6.50929431,195.87,195.85,105.50572833]
[1760351607725,7.18929431,195.86,195.83,20.09999999]
[1760351607926,6.50929431,195.84,195.83,0.1]
[1760351608351,7.18929431,195.84,195.83,0.1]
[1760351609424,6.50929431,195.84,195.83,0.1]
[1760351609642,0.68,195.86,195.83,0.1]
[1760351609847,6.50929431,195.87,195.84,0.65]
[1760351610149,6.50929431,195.89,195.88,19.99999999]
[1760351610350,7.18929431,195.89,195.86,19.99999999]
[1760351610529,6.50929431,195.87,195.84,19.99999999]
[1760351610725,6.50929431,195.85,195.84,19.99999999]
[1760351610942,7.18929431,195.85,195.83,0.1]
[1760351611133,6.50929431,195.84,195.83,0.1]
[1760351611535,7.18929431,195.84,195.83,0.1]
[1760351611937,12.29550346,195.84,195.83,0.1]
[1760351612525,6.50929431,195.84,195.83,0.1]
[1760351612730,12.29550346,195.84,195.83,0.1]
[1760351615355,27.30929431,195.84,195.83,0.1]
[1760351615531,20.8,195.84,195.83,0.1]
[1760351615730,27.4185843,195.84,195.83,0.1]
[1760351616437,6.6185843,195.84,195.83,0.1]
[1760351617039,12.40479345,195.84,195.83,0.1]
[1760351617429,33.20479345,195.84,195.83,0.1]
[1760351619446,20.90928999,195.84,195.83,0.1]
[1760351619755,33.20479345,195.84,195.83,0.1]
[1760351620335,18.91408776,195.84,195.83,0.1]
[1760351621454,15.60703856,195.84,195.83,0.1]
[1760351623752,36.40703856,195.84,195.83,0.1]
[1760351624054,15.60703856,195.84,195.83,0.1]
[1760351624258,18.27642961,195.84,195.83,0.1]
[1760351627160,18.25642961,195.84,195.83,0.1]
[1760351627550,39.05642961,195.84,195.83,0.1]
[1760351627747,18.25642961,195.84,195.83,0.1]
[1760351628150,17.59642961,195.84,195.83,0.1]
[1760351629864,2.77868104,195.84,195.83,0.1]
[1760351630042,9.82082941,195.84,195.83,0.75]
[1760351630247,0.10928999,195.84,195.83,25.85646988]
[1760351630455,0.10928999,195.84,195.83,36.73294509]
[1760351630662,0.11204584,195.86,195.83,36.73294509]
[1760351630663,0.11204584,195.86,195.85,30.8764752]
[1760351630859,9.82358526,195.86,195.84,20.64999999]
[1760351631054,0.11204584,195.86,195.85,20.64999999]
[1760351631866,9.82358526,195.86,195.85,0.65]
[1760351632054,9.82358526,195.86,195.85,20.64999999]
[1760351633146,0.11204584,195.86,195.85,20.64999999]
[1760351633365,0.11204584,195.86,195.85,25.75594841]
[1760351634163,0.11204584,195.86,195.85,20.64999999]
[1760351634372,9.82358526,195.86,195.85,20.64999999]
[1760351634553,0.11204584,195.86,195.85,25.75594841]
[1760351635156,0.11204584,195.86,195.83,0.1]
[1760351635157,0.77204584,195.86,195.83,0.1]
[1760351635363,9.71153942,195.84,195.83,0.75]
[1760351635561,20.8,195.85,195.83,0.1]
[1760351635870,0.09838525,195.84,195.83,0.75]
[1760351636378,9.80992467,195.84,195.83,0.1]
[1760351638772,15.57613382,195.84,195.83,0.1]
[1760351639674,0.09838525,195.84,195.83,0.1]
[1760351639972,9.80992467,195.84,195.83,0.1]
[1760351640570,5.8645944,195.84,195.83,0.1]
[1760351640770,14.91613382,195.84,195.83,0.1]
[1760351641152,9.80992467,195.84,195.83,0.1]
[1760351641473,14.91613382,195.84,195.83,0.1]
[1760351641801,15.57613382,195.84,195.83,0.1]
[1760351642680,10.46992467,195.84,195.83,0.1]
[1760351642856,31.26992467,195.84,195.83,0.1]
[1760351643062,30.60992467,195.84,195.83,0.1]
[1760351644269,0.09838525,195.84,195.83,0.75]
[1760351644478,9.80992467,195.84,195.83,5.85646989]
[1760351644670,0.09838525,195.84,195.83,25.85646988]
[1760351645578,0.09838525,195.84,195.83,36.73294509]
[1760351646083,9.80992467,195.84,195.83,20.09999999]
[1760351646283,10.46992467,195.84,195.83,0.1]
[1760351646771,0.75838525,195.84,195.83,0.1]
[1760351646977,36.37613382,195.84,195.83,0.1]
[1760351647762,15.57613382,195.84,195.83,0.1]
[1760351653364,20.8,195.81,195.74,80.5]
[1760351653563,9.71153942,195.75,195.74,100.49999999]
[1760351653778,9.71153942,195.75,195.74,101.14999999]
[1760351654377,9.71153942,195.75,195.74,0.1]
[1760351654768,20.8,195.81,195.74,106.25869519]
[1760351654968,0.09838525,195.84,195.79,5.10751315]
[1760351655178,9.71153942,195.81,195.8,0.65]
[1760351655384,9.71153942,195.82,195.8,0.65]
[1760351655669,9.71153942,195.82,195.81,0.65]
[1760351655876,9.82226381,195.82,195.81,20.64999999]
[1760351656070,9.82226381,195.82,195.79,25.75751314]
[1760351656278,0.11072439,195.82,195.8,0.65]
[1760351656691,9.71153942,195.81,195.8,0.65]
[1760351657570,9.71153942,195.81,195.8,20.64999999]
[1760351658292,0.11072439,195.82,195.81,19.99999999]
[1760351658469,0.11072439,195.82,195.81,20.71999999]
[1760351659076,0.11072439,195.82,195.81,41.30801462]
[1760351659681,0.11072439,195.82,195.81,46.41500609]
[1760351661303,1e-08,195.84,195.83,30.8764752]
[1760351661611,0.10509147,195.87,195.85,30.8764752]
[1760351661612,1e-08,195.86,195.85,30.8764752]
[1760351661817,9.71153942,195.95,195.86,30.8764752]
[1760351661973,9.71153942,195.96,195.88,30.8764752]
[1760351662177,9.71153942,195.96,195.88,40.58801462]
[1760351662402,9.71153942,195.96,195.88,41.30801462]
[1760351662771,9.71153942,195.96,195.88,46.41318104]
[1760351663101,1e-08,195.9,195.89,30.8764752]
[1760351663301,1e-08,195.9,195.89,41.30801462]
[1760351664300,1e-08,195.9,195.89,46.41292043]
[1760351665302,1e-08,195.9,195.89,67.21292043]
[1760351665710,1e-08,195.9,195.89,46.41292043]
[1760351666794,1e-08,195.9,195.89,35.98138101]
[1760351667599,1e-08,195.9,195.89,36.70138101]
[1760351667888,1e-08,195.9,195.89,46.41292043]
[1760351668299,1e-08,195.9,195.89,36.70138101]
[1760351668796,1e-08,195.9,195.89,46.41292043]
[1760351669517,1e-08,195.9,195.89,260.91292043]
[1760351669925,1e-08,195.9,195.89,67.21292043]
[1760351670821,1e-08,195.9,195.89,46.41292043]
[1760351672217,1e-08,195.9,195.89,67.21292043]
[1760351673240,1e-08,195.9,195.89,57.50138101]
[1760351673415,1e-08,195.9,195.89,46.41292043]
[1760351673723,1e-08,195.9,195.89,45.69292043]
[1760351674095,1e-08,195.9,195.89,46.41292043]
[1760351675507,1e-08,195.9,195.89,251.20138101]
[1760351675822,0.10926449,195.9,195.89,260.91292043]
[1760351676017,0.10926449,195.9,195.89,251.20138101]
[1760351676217,0.10926449,195.9,195.89,260.91292043]
[1760351677527,0.78926448,195.9,195.89,35.98138101]
[1760351679114,0.10926448,195.9,195.89,35.98138101]
[1760351679343,0.10926448,195.9,195.89,46.41292043]
[1760351681825,0.10926448,195.9,195.89,260.19292043]
[1760351682529,0.10354642,195.92,195.91,80.19083141]
[1760351682730,0.10354642,195.92,195.91,100.1908314]
[1760351682903,0.10354642,195.92,195.91,254.87884603]
[1760351683111,0.10087115,195.94,195.93,30.8764752]
[1760351683308,1e-08,195.94,195.93,251.67086546]
[1760351683511,1e-08,195.95,195.94,30.8764752]
[1760351683706,1e-08,195.95,195.94,38.10003405]
[1760351683921,1e-08,195.95,195.94,43.20363719]
[1760351684825,1e-08,195.95,195.94,176.58363719]
[1760351685337,0.69000001,195.95,195.94,170.08007834]
[1760351685835,1e-08,195.95,195.94,177.26363719]
[1760351686744,1e-08,195.95,195.94,43.16363719]
[1760351687239,0.09545232,195.97,195.96,30.8764752]
[1760351687423,0.09545232,195.97,195.96,37.38003405]
[1760351687933,0.09545232,195.97,195.96,42.48311631]
[1760351690419,0.09545232,195.97,195.96,35.97955746]
[1760351690617,7.25901117,195.97,195.96,19.99999999]
[1760351691015,7.25901117,195.97,195.95,10.87647521]
[1760351691325,0.09545232,195.97,195.96,19.99999999]
[1760351691854,0.75545232,195.97,195.96,19.99999999]
[1760351692342,7.25901117,195.97,195.96,19.99999999]
[1760351693751,0.09545232,195.97,195.96,10.87647521]
[1760351694040,0.09545232,195.97,195.96,30.8764752]
[1760351694221,0.09545232,195.97,195.96,35.97955746]
[1760351694428,7.25901117,195.97,195.95,19.99999999]
[1760351694624,7.16355885,195.96,195.95,19.99999999]
[1760351695737,7.26105856,195.96,195.95,25.10334267]
[1760351697041,0.09749971,195.96,195.95,35.97981788]
[1760351698649,0.75749971,195.96,195.95,35.97981788]
[1760351698945,0.09749971,195.96,195.95,35.97981788]
[1760351700051,0.09749971,195.96,195.95,43.14337673]
[1760351700432,0.09749971,195.96,195.95,42.48337673]
[1760351700746,0.09749971,195.96,195.95,35.97981788]
[1760351700931,7.26105856,195.96,195.95,10.87647521]
[1760351701540,7.26105856,195.96,195.95,35.97981788]
[1760351702649,7.26105856,195.96,195.94,19.99999999]
[1760351702846,0.09749971,195.96,195.95,19.99999999]
[1760351703043,6.60105856,195.96,195.93,19.99999999]
[1760351703249,6.50355885,195.94,195.92,19.99999999]
[1760351703434,3.26400122,195.93,195.92,30.8764752]
[1760351703634,3.26400122,195.93,195.92,19.99999999]
[1760351703835,3.26400122,195.93,195.91,19.99999999]
[1760351704159,3.26400122,195.92,195.9,19.99999999]
[1760351704450,0.66,195.91,195.9,25.10455287]
[1760351705044,0.66,195.91,195.9,19.99999999]
[1760351705250,3.26400122,195.91,195.88,5.10497722]
[1760351705440,2.60400122,195.89,195.88,116.17228383]
[1760351705753,0.66,195.9,195.89,19.99999999]
[1760351706057,20.8,195.93,195.91,19.99999999]
[1760351706238,23.40400122,195.93,195.92,19.99999999]
[1760351706556,24.06400122,195.93,195.92,100.1908314]
[1760351707333,8.36786484,195.93,195.92,80.19083141]
[1760351707944,29.16786484,195.93,195.9,80.19083141]
[1760351708145,20.8,195.93,195.9,80.19083141]
[1760351708349,0.09749971,195.96,195.9,80.19083141]
[1760351708350,23.50150093,195.96,195.93,19.99999999]
[1760351708548,0.75749971,195.96,195.93,19.99999999]
[1760351708749,0.09749971,195.96,195.95,19.99999999]
[1760351709557,8.46458319,195.96,195.9,80.19083141]
[1760351709737,2.60400122,195.92,195.91,19.99999999]
[1760351709939,2.60400122,195.93,195.91,19.99999999]
[1760351710438,2.60400122,195.93,195.92,19.99999999]
[1760351710758,2.60400122,195.93,195.91,19.99999999]
[1760351710759,3.26400122,195.93,195.91,19.99999999]
[1760351710936,2.60400122,195.92,195.91,19.99999999]
[1760351712039,2.60400122,195.92,195.9,19.99999999]
[1760351712368,0.66,195.93,195.92,19.99999999]
[1760351712937,20.89749971,195.96,195.92,19.99999999]
[1760351713253,0.09749971,195.96,195.94,19.99999999]
[1760351713555,6.60547185,195.96,195.95,19.99999999]
[1760351713940,0.09749971,195.96,195.95,20.65999999]
[1760351714132,0.09749971,195.96,195.95,43.14779002]
[1760351716048,0.19832931,195.97,195.96,35.97955746]
[1760351716356,0.19832931,195.97,195.96,43.1475296]
[1760351716751,1e-08,195.97,195.96,43.1475296]
[1760351718161,1e-08,195.97,195.96,36.63955746]
[1760351718460,1e-08,195.97,195.96,43.1475296]
[1760351718840,7.20797215,195.97,195.94,25.10340973]
[1760351719061,6.50797214,195.95,195.94,25.10340973]
[1760351719266,6.50797214,195.96,195.95,19.99999999]
[1760351720059,6.50797214,195.96,195.95,25.10334267]
[1760351720248,6.50797215,195.97,195.96,19.99999999]
[1760351720563,7.20797215,195.97,195.95,19.99999999]
[1760351720767,6.50797214,195.96,195.95,19.99999999]
[1760351721141,7.20797214,195.96,195.95,19.99999999]
[1760351721963,7.20797214,195.96,195.94,19.99999999]
[1760351722143,7.20797214,195.95,195.94,19.99999999]
[1760351723338,6.50797214,195.95,195.94,19.99999999]
[1760351723654,7.20797214,195.95,195.9,30.8764752]
[1760351723858,6.50797214,195.92,195.91,19.99999999]
[1760351724354,0.7,195.94,195.91,19.99999999]
[1760351724556,0.7,195.94,195.93,19.99999999]
[1760351725464,1e-08,195.97,195.95,19.99999999]
[1760351725657,6.50797214,195.96,195.95,19.99999999]
[1760351725961,27.30797215,195.97,195.95,19.99999999]
[1760351726164,20.80000001,195.97,195.96,19.99999999]
[1760351726754,20.80000001,195.97,195.95,19.99999999]
[1760351726958,20.80000001,195.97,195.96,19.99999999]
[1760351727459,27.30797215,195.97,195.96,19.99999999]
[1760351727962,28.00797215,195.97,195.95,19.99999999]
[1760351728143,7.20797214,195.96,195.95,19.99999999]
[1760351728772,6.50797214,195.96,195.95,19.99999999]
[1760351729169,6.50797214,195.96,195.95,100.1908314]
[1760351729978,6.50797214,195.96,195.95,19.99999999]
[1760351730651,6.50797214,195.96,195.95,100.1908314]
[1760351731562,6.50797214,195.96,195.95,19.99999999]
[1760351731762,39.61902654,195.96,195.89,19.99999999]
[1760351731976,6.50797214,195.91,195.9,19.99999999]
[1760351732477,6.50797214,195.91,195.89,19.99999999]
[1760351733175,6.50797214,195.91,195.9,19.99999999]
[1760351734972,0.69,195.94,195.9,19.99999999]
[1760351735173,21.49,195.93,195.92,19.99999999]
[1760351735366,5.10308612,195.96,195.92,19.99999999]
[1760351735571,6.50797214,195.94,195.92,19.99999999]
[1760351735755,0.10375822,195.93,195.92,19.99999999]
[1760351736151,0.10375822,195.93,195.92,20.66999999]
[1760351736669,0.10375822,195.93,195.92,19.99999999]
[1760351736876,6.61173036,195.93,195.92,19.99999999]
[1760351737567,11.71559398,195.93,195.92,19.99999999]
[1760351737758,12.40559398,195.93,195.89,19.99999999]
[1760351737960,6.50797214,195.9,195.89,25.10487287]
[1760351738787,6.50797214,195.9,195.89,19.99999999]
[1760351739369,2.60490172,195.9,195.89,19.99999999]
[1760351739758,3.29490172,195.9,195.88,19.99999999]
[1760351740077,3.29490172,195.89,195.83,19.99999999]
[1760351740282,2.60490172,195.84,195.83,19.99999999]
[1760351740583,2.60490172,195.84,195.82,19.99999999]
[1760351740770,2.60490172,195.83,195.82,19.99999999]
[1760351742791,3.29490172,195.83,195.82,19.99999999]
[1760351742958,20.8,195.81,195.8,19.99999999]
[1760351743164,24.09490172,195.81,195.8,19.99999999]
[1760351743381,20.8,195.81,195.8,19.99999999]
[1760351743560,30.51181437,195.81,195.8,19.99999999]
[1760351743760,31.20181437,195.81,195.78,19.99999999]
[1760351743960,21.49,195.81,195.8,19.99999999]
[1760351744162,31.20181437,195.81,195.8,19.99999999]
[1760351745663,30.51181437,195.81,195.8,19.99999999]
[1760351748687,3.36887737,195.85,195.82,19.99999999]
[1760351748885,9.71181437,195.83,195.82,19.99999999]
[1760351750088,10.41181437,195.83,195.82,19.99999999]
[1760351750597,15.51828426,195.83,195.79,19.99999999]
[1760351750774,30.51181437,195.8,195.77,25.10791908]
[1760351750966,9.71181437,195.78,195.77,25.10791908]
[1760351751291,20.8,195.8,195.79,19.99999999]
[1760351751468,30.51181437,195.8,195.79,19.99999999]
[1760351752892,9.71181437,195.8,195.79,19.99999999]
[1760351755571,30.51181437,195.82,195.81,19.99999999]
[1760351755771,0.10081329,195.83,195.82,19.99999999]
[1760351755999,9.81262766,195.83,195.82,19.99999999]
[1760351756188,0.10081329,195.83,195.82,20.70999999]
[1760351757381,0.10081329,195.83,195.82,25.81673066]
[1760351761290,10.51262766,195.83,195.82,19.99999999]
[1760351761495,10.51262766,195.83,195.81,19.99999999]
[1760351761694,21.60081329,195.83,195.82,19.99999999]
[1760351761917,20.90081329,195.83,195.82,25.81673066]
[1760351762105,0.10081329,195.83,195.82,25.10673066]
[1760351762308,0.10081329,195.83,195.77,10.87647521]
[1760351762309,20.8,195.8,195.74,30.9764752]
[1760351762498,0.7,195.79,195.76,19.99999999]
[1760351762686,0.7,195.79,195.78,19.99999999]
[1760351763008,10.41181437,195.79,195.78,19.99999999]
[1760351763398,4.77612362,195.79,195.76,19.99999999]
[1760351763599,4.07612362,195.77,195.76,19.99999999]
[1760351763800,4.77612362,195.77,195.74,20.09999999]
[1760351764111,4.07612362,195.75,195.74,25.20880229]
[1760351764504,4.07612362,195.75,195.74,20.09999999]
[1760351765296,25.57612362,195.75,195.74,0.1]
[1760351765898,20.8,195.71,195.7,0.1]
[1760351766091,24.87612362,195.71,195.7,20.09999999]
[1760351766309,25.57612362,195.71,195.7,20.09999999]
[1760351767512,20.8,195.72,195.71,19.99999999]
[1760351767709,0.7,195.76,195.71,19.99999999]
[1760351768019,9.72193969,195.72,195.71,25.81960093]
[1760351768215,20.8,195.74,195.71,25.81960093]
[1760351768399,5.80755499,195.79,195.75,19.99999999]
[1760351768714,9.72193969,195.76,195.75,20.70999999]
[1760351768914,9.72193969,195.76,195.75,19.99999999]
[1760351770114,0.7,195.79,195.75,25.10855682]
[1760351770413,5.107296,195.8,195.71,19.99999999]
[1760351770414,20.8,195.73,195.71,19.99999999]
[1760351770714,9.72193969,195.76,195.75,19.99999999]
[1760351770910,9.72193969,195.76,195.73,10.87647521]
[1760351771217,20.8,195.77,195.74,0.71]
[1760351771398,5.807296,195.8,195.76,19.99999999]
[1760351771598,20.8,195.77,195.76,19.99999999]
[1760351771810,5.80755676,195.79,195.74,86.00962565]
[1760351771811,0.7,195.79,195.75,19.99999999]
[1760351772013,0.7,195.82,195.76,20.70999999]
[1760351772216,9.72193969,195.8,195.79,19.99999999]
[1760351772412,9.72193969,195.81,195.8,19.99999999]
[1760351772613,9.72193969,195.81,195.79,20.70999999]
[1760351773207,20.90081329,195.83,195.75,9.72193969]
[1760351773208,10.42193969,195.8,195.75,19.99999999]
[1760351773515,10.42193969,195.8,195.74,25.10879423]
[1760351773516,9.72193969,195.76,195.74,25.10879423]
[1760351773711,9.72193969,195.76,195.74,25.81879423]
[1760351774315,9.72193969,195.76,195.75,19.99999999]
[1760351774702,9.72193969,195.77,195.76,19.99999999]
[1760351774915,9.72193969,195.77,195.76,20.70999999]
[1760351775124,9.72193969,195.78,195.76,20.70999999]
[1760351775315,9.72193969,195.77,195.76,0.71]
[1760351775614,9.72193969,195.77,195.76,19.99999999]
[1760351775823,9.82970953,195.77,195.76,19.99999999]
[1760351776199,0.10776984,195.77,195.76,25.10829586]
[1760351776398,0.10776984,195.77,195.76,36.69477107]
[1760351776821,0.09569303,195.78,195.77,10.87647521]
[1760351777025,0.11223145,195.8,195.79,30.8764752]
[1760351777220,0.10400502,195.81,195.79,40.59841489]
[1760351777519,0.09891215,195.83,195.81,30.8764752]
[1760351777905,0.09891215,195.83,195.81,36.68346667]
[1760351778221,9.82085184,195.83,195.81,25.10699146]
[1760351780004,0.09891215,195.83,195.81,25.10699146]
[1760351780414,9.82085184,195.83,195.81,25.10699146]
[1760351780701,9.81474176,195.82,195.81,25.10699146]
[1760351781528,0.09280207,195.82,195.81,25.10699146]
[1760351781827,36.37147243,195.82,195.77,19.99999999]
[1760351782016,9.72193969,195.78,195.77,19.99999999]
[1760351782619,10.37193969,195.78,195.75,19.99999999]
[1760351782807,9.72193969,195.76,195.75,19.99999999]
[1760351783007,9.72193969,195.76,195.74,19.99999999]
[1760351783314,0.65,195.78,195.76,19.99999999]
[1760351783506,0.65,195.78,195.73,10.87647521]
[1760351783507,0.65,195.78,195.75,19.99999999]
[1760351784126,0.65,195.8,195.76,19.99999999]
[1760351784440,0.65,195.79,195.77,19.99999999]
[1760351784726,20.8,195.76,195.7,0.1]
[1760351785432,9.72193969,195.71,195.7,0.1]
[1760351785828,20.8,195.76,195.7,0.8]
[1760351786032,9.72193969,195.72,195.71,18.20999999]
[1760351786208,9.72193969,195.72,195.71,18.90999999]
[1760351786533,9.72193969,195.72,195.7,18.30999999]
[1760351786721,9.72193969,195.71,195.7,18.30999999]
[1760351787030,9.72193969,195.71,195.7,24.11986202]
[1760351788929,30.52193969,195.71,195.7,0.1]
[1760351789720,35.63154063,195.71,195.7,0.1]
[1760351789910,14.83154063,195.71,195.7,0.1]
[1760351791633,9.72193969,195.71,195.7,0.8]
[1760351791951,5.10829587,195.76,195.72,18.20999999]
[1760351792141,5.10829587,195.76,195.73,18.20999999]
[1760351792309,5.10829587,195.76,195.73,0.7]
[1760351792509,5.10829587,195.76,195.73,18.20999999]
[1760351792820,5.10777403,195.78,195.74,0.7]
[1760351793026,5.10699147,195.81,195.75,0.7]
[1760351793234,5.10699147,195.81,195.75,24.01855682]
[1760351793425,5.10699147,195.81,195.78,18.20999999]
[1760351793825,20.8,195.79,195.78,18.20999999]
[1760351794232,5.10699147,195.81,195.78,18.20999999]
[1760351794538,30.52193969,195.79,195.78,18.20999999]
[1760351795613,9.81474176,195.82,195.81,18.20999999]
[1760351795810,0.20347959,195.83,195.81,29.7864752]
[1760351796013,0.20347959,195.83,195.82,29.7864752]
[1760351796014,0.10456744,195.83,195.82,29.7864752]
[1760351796317,0.20262135,195.84,195.83,29.0864752]
[1760351796640,0.20262135,195.84,195.83,29.7864752]
[1760351796814,0.20262135,195.84,195.83,39.50841489]
[1760351797430,0.09646232,195.84,195.83,44.61488478]
[1760351797815,0.10099637,195.86,195.85,29.0864752]